Workbook

Sheet PFP1
A1: PROPOSTA FINANCEIRA DO PROJETO | H1: CODIGO:
H2: PFP-1
A3: NOME DA EMPRESA:
A5: PROJETO: | D5: CONTRATANTE: | H5: EDITAL:
A6: CONTRATAÇÃO DE SERVIÇOS DE APOIO TÉCNICO-ADMINISTRATIVO CONTINUADO VISANDO À IMPLANTAÇÃO E ACOMPANHAMENTO DE AÇÕES DE DESENVOLVIMENTO REGIONAL NA ÁREA DE ATUAÇÃO DA 10ª SUPERINTENDÊNCIA REGIONAL DA CODEVASF NO ESTADO DO TOCANTINS. | D6: CODEVASF (10ª/SR)
A7: Cod. | B7: Categoria / Insumo | C7: Uni | D7: Qde | E7: CUD | F7: PU | G7: FatorK | H7: CT | I7: PT
A8: MO | B8: Mão de Obra com Vínculo | H8: =SUM(H9:H12) -> 774278.64 | I8: =SUM(I9:I12) -> 1843402.56
A9: P1 | B9: Profissional Pleno (Coordenador) | C9: mês | D9: =DQC!D7 -> 12 | E9: =DQC!E7 -> 14218.63 | F9: =ROUND(E9*G9,2) -> 33851.71 | G9: =PFP2.1_FatorKa!$E$37 -> 2.3808 | H9: =ROUND(D9*E9,2) -> 170623.56 | I9: =ROUND(F9*D9,2) -> 406220.52
A10: P3 | B10: Profissional Junior (Geral) | C10: mês | D10: 12 | E10: =DQC!E8 -> 4815.49 | F10: =ROUND(E10*G10,2) -> 11464.72 | G10: =PFP2.1_FatorKa!$E$37 -> 2.3808 | H10: =ROUND(D10*E10,2) -> 57785.88 | I10: =ROUND(F10*D10,2) -> 137576.64
A11: P3 | B11: Profissional Junior (De campo) | C11: mês | D11: =DQC!D9 -> 36 | E11: =DQC!E9 -> 10302 | F11: 24527 | G11: =PFP2.1_FatorKa!$E$37 -> 2.3808 | H11: 370872 | I11: 882972
A12: T1 | B12: Técnico Pleno | C12: mês | D12: =DQC!D10 -> 60 | E12: =DQC!E10 -> 2916.62 | F12: 6943.89 | G12: =PFP2.1_FatorKa!$E$37 -> 2.3808 | H12: 174997.2 | I12: =ROUND(F12*D12,2) -> 416633.4
A13: MO | B13: Mão de Obra sem Vínculo | H13: =SUM(H14:H15) -> 0 | I13: =SUM(I14:I15) -> 0
A14: P2 | B14: Profissional Medio | C14: mês | D14: =DQC!D12 -> 0 | E14: 11711.04 | F14: =ROUND(E14*G14,2) -> 19853.73 | G14: =PFP2.2_FatorKb!$E$37 -> 1.6953 | H14: =ROUND(D14*E14,2) -> 0 | I14: =ROUND(F14*D14,2) -> 0
A15: T1 | B15: Técnico Pleno | C15: mês | D15: =DQC!D13 -> 0 | E15: 5362.72 | F15: 9091.42 | G15: =PFP2.2_FatorKb!$E$37 -> 1.6953 | H15: 0 | I15: =ROUND(F15*D15,2) -> 0
A16: DPV | B16: Diárias e Veículos | H16: =SUM(H17:H19) -> 549626.4 | I16: =SUM(I17:I19) -> 690216.24
A17: D | B17: Diárias | C17: dia | D17: =DQC!D15 -> 1008 | E17: =DQC!E15 -> 305.1 | F17: =ROUND(E17*G17,2) -> 383.14 | G17: =PFP3_FatorKc!$E$19 -> 1.2558 | H17: =ROUND(D17*E17,2) -> 307540.8 | I17: =ROUND(F17*D17,2) -> 386205.12
A18: V1 | B18: Saveiro Robust 1.6 Total Flex 8V ou similar | C18: mês | D18: =DQC!D16 -> 12 | E18: 5400.3 | F18: =ROUND(E18*G18,2) -> 6781.7 | G18: =PFP3_FatorKc!$E$19 -> 1.2558 | H18: =ROUND(D18*E18,2) -> 64803.6 | I18: =ROUND(F18*D18,2) -> 81380.4
A19: V2 | B19: Hilux CS 4x4 2.8 TDI Diesel Mec. ou similar | C19: mês | D19: =DQC!D17 -> 12 | E19: 14773.5 | F19: =ROUND(E19*G19,2) -> 18552.56 | G19: =PFP3_FatorKc!$E$19 -> 1.2558 | H19: =ROUND(D19*E19,2) -> 177282 | I19: =ROUND(F19*D19,2) -> 222630.72
A20: EM | B20: Equipamentos e Materiais | H20: =SUM(H21:H22) -> 43597.56 | I20: =SUM(I21:I22) -> 54749.82
A21: EM1 | B21: Notebook tela 14”, HD 1TB, memória RAM de 8GB | C21: un | D21: =DQC!D19 -> 10 | E21: =DQC!E19 -> 3525.633333 | F21: =ROUND(E21*G21,2) -> 4427.49 | G21: =PFP3_FatorKc!$E$19 -> 1.2558 | H21: =ROUND(D21*E21,2) -> 35256.33 | I21: =ROUND(F21*D21,2) -> 44274.9
A22: EM2 | B22: Navegador GPS/ GLONASS, resolução visor de 160 X 240, tamanho de display 2,6”, memória interna 8GB, slot cartão de memória microSD, prova d'água, conexão bluetooth, com câmera 8MP | C22: un | D22: =DQC!D20 -> 2 | E22: =DQC!E20 -> 4170.616667 | F22: 5237.46 | G22: =PFP3_FatorKc!$E$19 -> 1.2558 | H22: 8341.23 | I22: 10474.92
A23: TOTAL DOS CUSTOS DIRETOS | F23: =H8+H16+H13+H20 -> 1367502.6
A24: TOTAL DOS ENCARGOS E DESPESAS DIVERSAS | F24: =F25-F23 -> 1220866.02
A25: TOTAL DA PROPOSTA | F25: =I8+I16+I13+I20 -> 2588368.62
A26: NOME DO INFORMANTE: | H26: QUALIFICAÇÃO
A28: ASSINATURA: | H28: DATA:
A30: OBSERVAÇÃO:
A31: Un - unidade de medição do insumo;
A32: Qde - Quantidade do Insumo (não pode ocorrer alteração pela Licitante)
A33: CUD - Custo Unitário Direto do Insumo (sem encargos, taxas e impostos, valor não pode ser maior que o Orçado pela Codevasf)
A34: CT - Custo Total (sem encargos, taxas e impostos) - CT = Qde x CUD
A35: FatorK - Taxa de Ressarcimento de Despesas e Encargos
A36: PU - Preço Unitário (incluído encargos, taxas e impostos) - PU = CUD x FatorK
A37: PT - Preço Total (incluído encargos, taxas e impostos) - PT = Qde x PU

Sheet Modelo Proposta
A1: MODELO PROPOSTA FINANCEIRA DO PROJETO | H1: CODIGO:
H2: PFP-1
A3: NOME DA EMPRESA:
A5: PROJETO: | D5: CONTRATANTE: | H5: EDITAL:
A6: CONTRATAÇÃO DE SERVIÇOS DE APOIO TÉCNICO-ADMINISTRATIVO CONTINUADO VISANDO À IMPLANTAÇÃO E ACOMPANHAMENTO DE AÇÕES DE DESENVOLVIMENTO REGIONAL NA ÁREA DE ATUAÇÃO DA 10ª SUPERINTENDÊNCIA REGIONAL DA CODEVASF NO ESTADO DO TOCANTINS. | D6: CODEVASF (10ª/SR)
A7: Cod. | B7: Categoria / Insumo | C7: Uni | D7: Qde | E7: CUD | F7: PU | G7: FatorK | H7: CT | I7: PT
A8: MO | B8: Mão de Obra com Vínculo | H8: =SUM(H9:H12) -> 0 | I8: =SUM(I9:I12) -> 0
A9: P1 | B9: Profissional Pleno (Coordenador) | C9: mês | D9: =DQC!D7 -> 12 | F9: =ROUND(E9*G9,2) -> 0 | G9: =PFP2.1_FatorKa!$E$37 -> 2.3808 | H9: =ROUND(D9*E9,2) -> 0 | I9: =ROUND(F9*D9,2) -> 0
A10: P3 | B10: Profissional Junior (Geral) | C10: mês | D10: =DQC!D8 -> 12 | F10: =ROUND(E10*G10,2) -> 0 | G10: =PFP2.1_FatorKa!$E$37 -> 2.3808 | H10: =ROUND(D10*E10,2) -> 0 | I10: =ROUND(F10*D10,2) -> 0
A11: P3 | B11: Profissional Junior (De campo) | C11: mês | D11: =DQC!D9 -> 36 | F11: 0 | G11: =PFP2.1_FatorKa!$E$37 -> 2.3808 | H11: 0 | I11: 0
A12: T1 | B12: Técnico Pleno | C12: mês | D12: =DQC!D10 -> 60 | F12: 0 | G12: =PFP2.1_FatorKa!$E$37 -> 2.3808 | H12: 0 | I12: =ROUND(F12*D12,2) -> 0
A13: MO | B13: Mão de Obra sem Vínculo | H13: =SUM(H14:H15) -> 0 | I13: =SUM(I14:I15) -> 0
A14: P2 | B14: Profissional Medio | C14: mês | D14: =DQC!D12 -> 0 | F14: =ROUND(E14*G14,2) -> 0 | G14: =PFP2.2_FatorKb!$E$37 -> 1.6953 | H14: =ROUND(D14*E14,2) -> 0 | I14: =ROUND(F14*D14,2) -> 0
A15: T1 | B15: Técnico Pleno | C15: mês | D15: =DQC!D13 -> 0 | F15: 0 | G15: =PFP2.2_FatorKb!$E$37 -> 1.6953 | H15: 0 | I15: 0
A16: DPV | B16: Diárias, Passagens e Veículos | H16: =SUM(H17:H19) -> 0 | I16: =SUM(I17:I19) -> 0
A17: D | B17: Diárias | C17: dia | D17: =DQC!D15 -> 1008 | F17: =ROUND(E17*G17,2) -> 0 | G17: =PFP3_FatorKc!$E$19 -> 1.2558 | H17: =ROUND(D17*E17,2) -> 0 | I17: =ROUND(F17*D17,2) -> 0
A18: V1 | B18: Saveiro Robust 1.6 Total Flex 8V ou similar | C18: mês | D18: =DQC!D16 -> 12 | F18: =ROUND(E18*G18,2) -> 0 | G18: =PFP3_FatorKc!$E$19 -> 1.2558 | H18: =ROUND(D18*E18,2) -> 0 | I18: =ROUND(F18*D18,2) -> 0
A19: V2 | B19: Hilux CS 4x4 2.8 TDI Diesel Mec. ou similar | C19: mês | D19: =DQC!D17 -> 12 | F19: =ROUND(E19*G19,2) -> 0 | G19: =PFP3_FatorKc!$E$19 -> 1.2558 | H19: 0 | I19: 0
A20: EM | B20: Equipamentos e Materiais | H20: =SUM(H21:H22) -> 0 | I20: =SUM(I21:I22) -> 0
A21: EM1 | B21: Notebook tela 14”, HD 1TB, memória RAM de 8GB | C21: un | D21: =DQC!D19 -> 10 | F21: =ROUND(E21*G21,2) -> 0 | G21: =PFP3_FatorKc!$E$19 -> 1.2558 | H21: =ROUND(D21*E21,2) -> 0 | I21: =ROUND(F21*D21,2) -> 0
A22: EM2 | B22: Navegador GPS/ GLONASS, resolução visor de 160 X 240, tamanho de display 2,6”, memória interna 8GB, slot cartão de memória microSD, prova d'água, conexão bluetooth, com câmera 8MP | C22: un | D22: =DQC!D20 -> 2 | F22: 0 | G22: =PFP3_FatorKc!$E$19 -> 1.2558 | H22: 0 | I22: 0
A23: TOTAL DOS CUSTOS DIRETOS | F23: =H8+H16+H13+H20 -> 0
A24: TOTAL DOS ENCARGOS E DESPESAS DIVERSAS | F24: =F25-F23 -> 0
A25: TOTAL DA PROPOSTA | F25: =I8+I16+I13+I20 -> 0
A26: NOME DO INFORMANTE: | H26: QUALIFICAÇÃO
A28: ASSINATURA: | H28: DATA:
A30: OBSERVAÇÃO:
A31: Un - unidade de medição do insumo;
A32: Qde - Quantidade do Insumo (não pode ocorrer alteração pela Licitante)
A33: CUD - Custo Unitário Direto do Insumo (sem encargos, taxas e impostos, valor não pode ser maior que o Orçado pela Codevasf)
A34: CT - Custo Total (sem encargos, taxas e impostos) - CT = Qde x CUD
A35: FatorK - Taxa de Ressarcimento de Despesas e Encargos (detalhar composição nas Planilhas "FCON2.1", "FCON2.2", "FCON3")
A36: PU - Preço Unitário (incluído encargos, taxas e impostos) - PU = CUD x FatorK
A37: PT - Preço Total (incluído encargos, taxas e impostos) - PT = Qde x PU

Sheet PFP2.1_FatorKa
A1: DETALHAMENTO DOS ENCARGOS SOCIAIS: Ka | F1: CODIGO:
F2: PFP-2.1
A3: NOME DA EMPRESA:
A5: PROJETO: | C5: CONTRATANTE: | F5: EDITAL:
A6: CONTRATAÇÃO DE SERVIÇOS DE APOIO TÉCNICO-ADMINISTRATIVO CONTINUADO VISANDO À IMPLANTAÇÃO E ACOMPANHAMENTO DE AÇÕES DE DESENVOLVIMENTO REGIONAL NA ÁREA DE ATUAÇÃO DA 10ª SUPERINTENDÊNCIA REGIONAL DA CODEVASF NO ESTADO DO TOCANTINS. | C6: CODEVASF (10ª/SR)
A7: DISCRIMINAÇÃO | E7: VALORES
E8: % | F8: R$
A9: A | B9: ENCARGOS SOCIAIS BÁSICOS | E9: =ROUND(SUM(E10:E18),4) -> 0.378 | F9: =E9*'PFP1'!$H$8 -> 292677.3259
A10: A1 | B10: Seconci | E10: 0.01 | F10: =E10*'PFP1'!$H$8 -> 7742.7864
A11: A2 | B11: INSS | E11: 0.2 | F11: =E11*'PFP1'!$H$8 -> 154855.728
A12: A3 | B12: FGTS | E12: 0.08 | F12: =E12*'PFP1'!$H$8 -> 61942.2912
A13: A4 | B13: Incra | E13: 0.002 | F13: =E13*'PFP1'!$H$8 -> 1548.55728
A14: A5 | B14: Salário Educação | E14: 0.025 | F14: =E14*'PFP1'!$H$8 -> 19356.966
A15: A6 | B15: Sebrae | E15: 0.006 | F15: =E15*'PFP1'!$H$8 -> 4645.67184
A16: A7 | B16: Seguro contra acidente | E16: 0.03 | F16: =E16*'PFP1'!$H$8 -> 23228.3592
A17: A8 | B17: Senai | E17: 0.01 | F17: =E17*'PFP1'!$H$8 -> 7742.7864
A18: A9 | B18: Sesi | E18: 0.015 | F18: =E18*'PFP1'!$H$8 -> 11614.1796
A19: B | B19: ENCARGOS SOCIAIS QUE RECEBEM INCIDÊNCIA DE "A" | E19: =ROUND(SUM(E20:E26),4) -> 0.1862 | F19: =E19*'PFP1'!$H$8 -> 144170.6828
A20: B1 | B20: 13º Salário | E20: 0.0833 | F20: =E20*'PFP1'!$H$8 -> 64497.41071
A21: B2 | B21: Auxilio Enfermidade | E21: 0.0067 | F21: =E21*'PFP1'!$H$8 -> 5187.666888
A22: B3 | B22: Licença Paternidade | E22: 0.0006 | F22: =E22*'PFP1'!$H$8 -> 464.567184
A23: B4 | B23: Faltas Justificadas | E23: 0.0056 | F23: =E23*'PFP1'!$H$8 -> 4335.960384
A24: B5 | B24: Auxílio Acidente de Trabalho | E24: 0.0008 | F24: =E24*'PFP1'!$H$8 -> 619.422912
A25: B6 | B25: Férias Gozadas | E25: 0.0889 | F25: =E25*'PFP1'!$H$8 -> 68833.3711
A26: B7 | B26: Salário Maternidade | E26: 0.0003 | F26: =E26*'PFP1'!$H$8 -> 232.283592
A27: C | B27: ENCARGOS SOCIAIS QUE NÃO RECEBEM INCIDÊNCIA DE "A" | E27: =ROUND(SUM(E28:E32),4) -> 0.1065 | F27: =E27*'PFP1'!$H$8 -> 82460.67516
A28: C1 | B28: Aviso Prévio Indenizado | E28: 0.0535 | F28: =E28*'PFP1'!$H$8 -> 41423.90724
A29: C2 | B29: Aviso Prévio Trabalhado | E29: 0.0013 | F29: =E29*'PFP1'!$H$8 -> 1006.562232
A30: C3 | B30: Férias Indenizadas | E30: 0.018 | F30: =E30*'PFP1'!$H$8 -> 13937.01552
A31: C4 | B31: Depósito Rescisão Sem Justa Causa | E31: 0.0292 | F31: =E31*'PFP1'!$H$8 -> 22608.93629
A32: C5 | B32: Indenização Adicional | E32: 0.0045 | F32: =E32*'PFP1'!$H$8 -> 3484.25388
A33: D | B33: REINCIDÊNCIAS | E33: =ROUND(SUM(E34:E35),4) -> 0.0752 | F33: =E33*'PFP1'!$H$8 -> 58225.75373
A34: D1 | B34: Reincidência de "A" sobre "B" | E34: =ROUND(E9*E19,4) -> 0.0704 | F34: =E34*'PFP1'!$H$8 -> 54509.21626
A35: D2 | B35: Reincidência de "A" sobre Aviso Prévio Trabalhado e reincidência do FGTS sobre aviso prévio indenizado | E35: =(E29*E9)+(E28*E12) -> 0.0047714 | F35: =E35*'PFP1'!$H$8 -> 3694.393103
A36: K1 | B36: ENCARGOS SOCIAIS | E36: =ROUND(E9+E19+E27+E33,4) -> 0.7459 | F36: =E36*'PFP1'!$H$8 -> 577534.4376
A37: Ka | B37: TAXA DE RESSARCIMENTO DE DESPESAS E ENCARGOS SOBRE M.O. | E37: =ROUND((1+E36+PFP3_FatorKc!E15)*(1+PFP3_FatorKc!E14)*(1+PFP3_FatorKc!E10),4) -> 2.3808
A38: NOME DO INFORMANTE: | E38: QUALIFICAÇÃO
A40: ASSINATURA: | E40: DATA:
A42: OBSERVAÇÃO:
A43: 1 - DISCRIMINAR OS ENCARGOS SOCIAIS COM SEUS RESPECTIVOS PERCENTUAS TOTALIZANDO OS MESMOS.
A44: 2 - APLICAR O % TOTAL P/ CALCULAR OS E. SOCIAIS INCIDENTES NA MÃO-DE-OBRA COM VÍNCULO PERMANENTE
A45: Ka - Taxa de Ressarcimento de Despesas e Encargos sobre a Mão de Obra COM VINCULO (incide apenas no Insumo Codigo M.O.)
A46: Ka = (1 + K1 + K2) x (1 + K3) x (1 + K4)

Sheet PFP2.2_FatorKb
A1: DETALHAMENTO DOS ENCARGOS SOCIAIS: Kb | F1: CODIGO:
F2: PFP-2.2
A3: NOME DA EMPRESA:
A5: PROJETO: | C5: CONTRATANTE: | F5: EDITAL:
A6: CONTRATAÇÃO DE SERVIÇOS DE APOIO TÉCNICO-ADMINISTRATIVO CONTINUADO VISANDO À IMPLANTAÇÃO E ACOMPANHAMENTO DE AÇÕES DE DESENVOLVIMENTO REGIONAL NA ÁREA DE ATUAÇÃO DA 10ª SUPERINTENDÊNCIA REGIONAL DA CODEVASF NO ESTADO DO TOCANTINS. | C6: CODEVASF (10ª/SR)
A7: DISCRIMINAÇÃO | E7: VALORES
E8: % | F8: R$
A9: A | B9: ENCARGOS SOCIAIS BÁSICOS | E9: =ROUND(SUM(E10:E18),4) -> 0.2 | F9: =E9*'PFP1'!$H$13 -> 0
A10: A1 | B10: Seconci | E10: 0 | F10: =E10*'PFP1'!$H$13 -> 0
A11: A2 | B11: INSS | E11: 0.2 | F11: =E11*'PFP1'!$H$13 -> 0
A12: A3 | B12: FGTS | E12: 0 | F12: =E12*'PFP1'!$H$13 -> 0
A13: A4 | B13: Incra | E13: 0 | F13: =E13*'PFP1'!$H$13 -> 0
A14: A5 | B14: Salário Educação | E14: 0 | F14: =E14*'PFP1'!$H$13 -> 0
A15: A6 | B15: Sebrae | E15: 0 | F15: =E15*'PFP1'!$H$13 -> 0
A16: A7 | B16: Seguro contra acidente | E16: 0 | F16: =E16*'PFP1'!$H$13 -> 0
A17: A8 | B17: Senai | E17: 0 | F17: =E17*'PFP1'!$H$13 -> 0
A18: A9 | B18: Sesi | E18: 0 | F18: =E18*'PFP1'!$H$13 -> 0
A19: B | B19: ENCARGOS SOCIAIS QUE RECEBEM INCIDÊNCIA DE "A" | E19: =ROUND(SUM(E20:E26),4) -> 0 | F19: =E19*'PFP1'!$H$13 -> 0
A20: B1 | B20: 13º Salário | E20: 0 | F20: =E20*'PFP1'!$H$13 -> 0
A21: B2 | B21: Auxilio Enfermidade | E21: 0 | F21: =E21*'PFP1'!$H$13 -> 0
A22: B3 | B22: Licença Paternidade | E22: 0 | F22: =E22*'PFP1'!$H$13 -> 0
A23: B4 | B23: Faltas Justificadas | E23: 0 | F23: =E23*'PFP1'!$H$13 -> 0
A24: B5 | B24: Auxílio Acidente de Trabalho | E24: 0 | F24: =E24*'PFP1'!$H$13 -> 0
A25: B6 | B25: Férias Gozadas | E25: 0 | F25: =E25*'PFP1'!$H$13 -> 0
A26: B7 | B26: Salário Maternidade | E26: 0 | F26: =E26*'PFP1'!$H$13 -> 0
A27: C | B27: ENCARGOS SOCIAIS QUE NÃO RECEBEM INCIDÊNCIA DE "A" | E27: =ROUND(SUM(E28:E32),4) -> 0 | F27: =E27*'PFP1'!$H$13 -> 0
A28: C1 | B28: Aviso Prévio Indenizado | E28: 0 | F28: =E28*'PFP1'!$H$13 -> 0
A29: C2 | B29: Aviso Prévio Trabalhado | E29: 0 | F29: =E29*'PFP1'!$H$13 -> 0
A30: C3 | B30: Férias Indenizadas | E30: 0 | F30: =E30*'PFP1'!$H$13 -> 0
A31: C4 | B31: Depósito Rescisão Sem Justa Causa | E31: 0 | F31: =E31*'PFP1'!$H$13 -> 0
A32: C5 | B32: Indenização Adicional | E32: 0 | F32: =E32*'PFP1'!$H$13 -> 0
A33: D | B33: REINCIDÊNCIAS | E33: =ROUND(SUM(E34:E35),4) -> 0 | F33: =E33*'PFP1'!$H$13 -> 0
A34: D1 | B34: Reincidência de "A" sobre "B" | E34: =ROUND(E9*E19,4) -> 0 | F34: =E34*'PFP1'!$H$13 -> 0
A35: D2 | B35: Reincidência de "A" sobre Aviso Prévio Trabalhado e reincidência do FGTS sobre aviso prévio indenizado | E35: =ROUND(E9*E29,4)+ROUND(E28*E12,4) -> 0 | F35: =E35*'PFP1'!$H$13 -> 0
A36: K1 | B36: ENCARGOS SOCIAIS | E36: =ROUND(E9+E19+E27+E33,4) -> 0.2 | F36: =E36*'PFP1'!$H$13 -> 0
A37: Kb | B37: TAXA DE RESSARCIMENTO DE DESPESAS E ENCARGOS SOBRE M.O. | E37: =ROUND((1+E36+PFP3_FatorKc!E15)*(1+PFP3_FatorKc!E14)*(1+PFP3_FatorKc!E10),4) -> 1.6953
A38: NOME DO INFORMANTE: | E38: QUALIFICAÇÃO
A40: ASSINATURA: | E40: DATA:
A42: OBSERVAÇÃO:
A43: 1 - DISCRIMINAR OS ENCARGOS SOCIAIS COM SEUS RESPECTIVOS PERCENTUAS TOTALIZANDO OS MESMOS.
A44: 2 - APLICAR O % TOTAL P/ CALCULAR OS E. SOCIAIS INCIDENTES NA MÃO-DE-OBRA SEM VÍNCULO PERMANENTE
A45: Kb - Taxa de Ressarcimento de Despesas e Encargos sobre a Mão de Obra SEM VINCULO (incide apenas no Insumo Codigo M.O.)
A46: Kb = (1 + K1 + K2) x (1 + K3) x (1 + K4)

Sheet PFP3_FatorKc
A1: DESPESAS FISCAIS E CUSTOS DIVERSOS: Kc | F1: CODIGO:
F2: PFP-3
A3: NOME DA EMPRESA:
A5: PROJETO: | C5: CONTRATANTE: | F5: EDITAL:
A6: CONTRATAÇÃO DE SERVIÇOS DE APOIO TÉCNICO-ADMINISTRATIVO CONTINUADO VISANDO À IMPLANTAÇÃO E ACOMPANHAMENTO DE AÇÕES DE DESENVOLVIMENTO REGIONAL NA ÁREA DE ATUAÇÃO DA 10ª SUPERINTENDÊNCIA REGIONAL DA CODEVASF NO ESTADO DO TOCANTINS. | C6: CODEVASF (10ª/SR)
A7: DISCRIMINAÇÃO 1 | D7: VALORES
D8: % preço | E8: % custo | F8: R$
A9: K4 | B9: DESPESAS FISCAIS | D9: K' (%)2 | E9: K (%)3
D10: =ROUND(D11+D12+D13,4) -> 0.124 | E10: =ROUND(E11+E12+E13,4) -> 0.1416 | F10: =E10*SUM('PFP1'!$H$8*(1+PFP2.1_FatorKa!$E$36)+'PFP1'!$H$13*(1+PFP2.2_FatorKb!$E$36)+'PFP1'!$H$16+'PFP1'!$H$20+PFP3_FatorKc!$F$15+PFP3_FatorKc!$F$14) -> 321049.2157
A11: 1 | B11: ISS | D11: 0.05 | E11: =ROUND((1/(1-$D$10))*D11,4) -> 0.0571 | F11: =E11*SUM('PFP1'!$H$8*(1+PFP2.1_FatorKa!$E$36)+'PFP1'!$H$13*(1+PFP2.2_FatorKb!$E$36)+'PFP1'!$H$16+'PFP1'!$H$20+PFP3_FatorKc!$F$15+PFP3_FatorKc!$F$14) -> 129462.6428
A12: 2 | B12: PIS - aliquota efetiva com percentual-desconto de 20% | D12: =ROUND(1.65%*0.8,4) -> 0.0132 | E12: =ROUND((1/(1-$D$10))*D12,4) -> 0.0151 | F12: =E12*SUM('PFP1'!$H$8*(1+PFP2.1_FatorKa!$E$36)+'PFP1'!$H$13*(1+PFP2.2_FatorKb!$E$36)+'PFP1'!$H$16+'PFP1'!$H$20+PFP3_FatorKc!$F$15+PFP3_FatorKc!$F$14) -> 34236.18049
A13: 3 | B13: COFINS - aliquota efetiva com percentual-desconto de 20% | D13: =ROUND(7.6%*0.8,4) -> 0.0608 | E13: 0.0694 | F13: =E13*SUM('PFP1'!$H$8*(1+PFP2.1_FatorKa!$E$36)+'PFP1'!$H$13*(1+PFP2.2_FatorKb!$E$36)+'PFP1'!$H$16+'PFP1'!$H$20+PFP3_FatorKc!$F$15+PFP3_FatorKc!$F$14) -> 157350.3925
A14: K3 | B14: REMUNERAÇÃO DA EMPRESA (LUCRO) | E14: 0.1 | F14: =E14*SUM('PFP1'!$H$8*(1+PFP2.1_FatorKa!$E$36)+'PFP1'!$H$13*(1+PFP2.2_FatorKb!$E$36)+'PFP1'!$H$16+'PFP1'!$H$20+PFP3_FatorKc!$F$15) -> 206117.8838
A15: K2 | B15: CUSTOS DA ADMINISTRAÇÃO CENTRAL | E15: =ROUND(SUM(E16:E18),4) -> 0.15 | F15: =ROUND(E15*('PFP1'!$H$8+'PFP1'!$H$13),2) -> 116141.8
A16: 4 | B16: Custos da administração central da empresa (diretoria, pessoal técnico de apoio e pessoal administrativo não diretamente vinculado à prestação dos serviços) | E16: 0.1 | F16: =ROUND(E16*('PFP1'!$H$8+'PFP1'!$H$13),2) -> 77427.86
A17: 5 | B17: Outras despesas que afetam o custo de produção como treinamento, biblioteca, programa de qualidade, programa de benefícios, auditoria interna e externa | E17: 0.03 | F17: =ROUND(E17*('PFP1'!$H$8+'PFP1'!$H$13),2) -> 23228.36
A18: 6 | B18: Despesas fixas e variaveis com patrimônio, aluguéis, comunicação, manutenção e transporte não diretamente relacionados com o custo direto dos serviços | E18: 0.02 | F18: =ROUND(E18*('PFP1'!$H$8+'PFP1'!$H$13),2) -> 15485.57
A19: Kc | B19: TAXA RESSARCIMENTO DE DESPESAS SOBRE CUSTOS DIVERSOS | E19: =ROUND((1+E14)*(1+E10),4) -> 1.2558
A20: NOME DO INFORMANTE: | E20: QUALIFICAÇÃO:
A22: ASSINATURA: | E22: DATA:
A24: Observação:
A25: 1 - RELACIONAR OS CUSTOS DE ADMINISTRAÇÃO COM RESPECTIVOS PERCENTUAIS INCIDENTES NA MÃO -DE-OBRA
A26: 1 - DISCRIMINAR OS TRIBUTOS QUE INCIDEM SOBRE OS CUSTOS DA PRESTAÇÃO DOS SERVIÇOS
A27: 2 - K4 = INDICAR % DE CADA TRIBUTO E A SOMA DOS MESMOS (ex: ISS 5% + PIS 1,65% + COFINS 7,60% = 14,25%)
A28: 3 - PIS e COFINS, Regime de Incidencia Acumulativa (0,65% e 3,00% - sem percentual de desconto) ou em Regime de Incidencia Não Acumulativa (1,65% e 7,60% - aplicável percentual de desconto) de acordo com a forma de apuração do lucro no IRPJ. APRESENTAR COMPROVANTES de aproveitamento de créditos tributários dos últimos 12 meses em caso de aplicação de "percentual de desconto".
A29: 4 - AS DESPESAS FISCAIS (K4) INCIDEM SOBRE O TOTAL DA FATURA E NÃO SOBRE OS CUSTOS INCORRIDOS,
A30: DEVENDO SER CALCULADO O K4' APLICANDO-SE A SEGUINTE FÓRMULA:
A31: K4' = { [ 1 / ( 1 - K4) ] - 1 } x 100
A32: =CONCATENATE(" K4' = { [ 1 / ( 1 - ",D10," ) ] - 1 } x 100") -> K4' = { [ 1 / ( 1 - 0,124 ) ] - 1 } x 100
A33: Kc - Taxa de Ressarcimento de Despesas sobre Custos Diversos (incide sobre os Insumos Codigo DP e EQ)
A34: Kc = (1 + K3) x (1 + K4)
A35: K2 - Incide sobre o Custo Total (CT) da Mão de Obra (MO)
A36: K3 - Incide sobre o Custo Total (CT) Mão de Obra com encargos (MO x Ka ou Kb), demais Custos (DP e EQ), e Custos da Administração Central (K2)
A37: K4 - Incide sobre o Custo Total (CT) Mão de Obra com encargos (MO x Ka ou Kb), demais Custos (DP e EQ), e Custos da Administração Central (K2) e Lucro (K3)

Sheet DQC
A1: DETALHAMENTO DO QUANTITATIVOS CONTRATADOS | K1: CODIGO:
K2: DQC
A3: INSUMOS POR ESTADO/PRODUTO
A5: Cod. | B5: Categoria / Insumo | C5: Uni | D5: Qde | E5: CUD | F5: PU | G5: FatorK | H5: CT | I5: PT | J5: TO | K5: Total
A6: MO | B6: Mão de Obra com Vínculo | H6: =SUM(H7:H10) -> 774278.64 | I6: =SUM(I7:I10) -> 1843402.56
A7: P1 | B7: Profissional Pleno (Coordenador) | C7: mês | D7: =K7 -> 12 | E7: 14218.63 | F7: =ROUND(E7*G7,2) -> 33851.71 | G7: =PFP2.1_FatorKa!$E$37 -> 2.3808 | H7: =ROUND(D7*E7,2) -> 170623.56 | I7: =ROUND(F7*D7,2) -> 406220.52 | J7: 12 | K7: =SUM(J7:J7) -> 12
A8: P3 | B8: Profissional Junior (Geral) | C8: mês | D8: 12 | E8: 4815.49 | F8: =ROUND(E8*G8,2) -> 11464.72 | G8: =PFP2.1_FatorKa!$E$37 -> 2.3808 | H8: =ROUND(D8*E8,2) -> 57785.88 | I8: =ROUND(F8*D8,2) -> 137576.64 | J8: 12 | K8: =SUM(J8:J8) -> 12
A9: P3 | B9: Profissional Junior (De campo) | C9: mês | D9: 36 | E9: 10302 | F9: =ROUND(E9*G9,2) -> 24527 | G9: =PFP2.1_FatorKa!$E$37 -> 2.3808 | H9: =ROUND(D9*E9,2) -> 370872 | I9: =ROUND(F9*D9,2) -> 882972 | J9: =D9 -> 36 | K9: =SUM(J9:J9) -> 36
A10: T1 | B10: Técnico Pleno | C10: mês | D10: =5*12 -> 60 | E10: 2916.62 | F10: =ROUND(E10*G10,2) -> 6943.89 | G10: =PFP2.1_FatorKa!$E$37 -> 2.3808 | H10: =ROUND(D10*E10,2) -> 174997.2 | I10: =ROUND(F10*D10,2) -> 416633.4 | J10: =D10 -> 60 | K10: =SUM(J10:J10) -> 60
A11: MO | B11: Mão de Obra sem Vínculo | H11: =SUM(H12:H13) -> 0 | I11: =SUM(I12:I13) -> 0
A12: P2 | B12: Profissional Médio | C12: mês | F12: =ROUND(E12*G12,2) -> 0 | G12: =PFP2.2_FatorKb!$E$37 -> 1.6953 | H12: =ROUND(D12*E12,2) -> 0 | I12: =ROUND(F12*D12,2) -> 0 | K12: =SUM(J12:J12) -> 0
A13: T1 | B13: Técnico Pleno | C13: mês | F13: 0 | G13: =PFP2.2_FatorKb!$E$37 -> 1.6953 | H13: 0 | I13: 0 | K13: =SUM(J13:J13) -> 0
A14: DPV | B14: Diárias, Passagens e Veículos | H14: =SUM(H15:H17) -> 549626.4 | I14: =SUM(I15:I17) -> 690216.24
A15: D1 | B15: Diárias | C15: dia | D15: =K15 -> 1008 | E15: 305.1 | F15: =ROUND(E15*G15,2) -> 383.14 | G15: =PFP3_FatorKc!$E$19 -> 1.2558 | H15: =ROUND(D15*E15,2) -> 307540.8 | I15: =ROUND(F15*D15,2) -> 386205.12 | J15: =(24+24)*21 -> 1008 | K15: =SUM(J15:J15) -> 1008
A16: V1 | B16: Saveiro Robust 1.6 Total Flex 8V ou similar | C16: mês | D16: 12 | E16: ='PFP1'!E18 -> 5400.3 | F16: =ROUND(E16*G16,2) -> 6781.7 | G16: =PFP3_FatorKc!$E$19 -> 1.2558 | H16: =ROUND(D16*E16,2) -> 64803.6 | I16: =ROUND(F16*D16,2) -> 81380.4 | J16: =D16 -> 12 | K16: =SUM(J16:J16) -> 12
A17: V2 | B17: Hilux CS 4x4 2.8 TDI Diesel Mec. ou similar | C17: mês | D17: =K17 -> 12 | E17: ='PFP1'!E19 -> 14773.5 | F17: =ROUND(E17*G17,2) -> 18552.56 | G17: =PFP3_FatorKc!$E$19 -> 1.2558 | H17: =ROUND(D17*E17,2) -> 177282 | I17: =ROUND(F17*D17,2) -> 222630.72 | J17: 12 | K17: =SUM(J17:J17) -> 12
A18: EM | B18: Equipamentos e Materiais | H18: =SUM(H19:H20) -> 43597.56 | I18: =SUM(I19:I20) -> 54749.82
A19: EM1 | B19: Notebook tela 15.6”, HD 1TB, memória RAM de 8GB | C19: un | D19: =K19 -> 10 | E19: =AVERAGE(2999,3799,3778.9) -> 3525.633333 | F19: =ROUND(E19*G19,2) -> 4427.49 | G19: =PFP3_FatorKc!$E$19 -> 1.2558 | H19: =ROUND(D19*E19,2) -> 35256.33 | I19: =ROUND(F19*D19,2) -> 44274.9 | J19: 10 | K19: =SUM(J19:J19) -> 10
A20: EM2 | B20: Navegador GPS/ GLONASS, resolução visor de 160 X 240, tamanho de display 2,6”, memória interna 8GB, slot cartão de memória microSD, prova d'água, conexão bluetooth, com câmera 8MP | C20: un | D20: =K20 -> 2 | E20: =AVERAGE(4199,4713.85,3599) -> 4170.616667 | F20: 5237.46 | G20: =PFP3_FatorKc!$E$19 -> 1.2558 | H20: 8341.23 | I20: 10474.92 | J20: 2 | K20: =SUM(J20:J20) -> 2
A21: TOTAL DOS CUSTOS DIRETOS | F21: =H6+H14+H11+H18 -> 1367502.6
A22: TOTAL DOS ENCARGOS E DESPESAS DIVERSAS | F22: =F23-F21 -> 1220866.02
A23: TOTAL DA PROPOSTA | F23: =I6+I14+I11+I18 -> 2588368.62
A24: NOME DO INFORMANTE: | H24: QUALIFICAÇÃO:
A26: ASSINATURA: | H26: DATA:
A28: OBSERVAÇÃO:
A29: Uni - unidade de medição do insumo
A30: Qde - Quantidade do Insumo (não pode ocorrer alteração pela Licitante)
A31: CUD - Custo Unitário Direto do Insumo (sem encargos, taxas e impostos, valor não pode ser maior que o Orçado pela Codevasf)
A32: CT - Custo Total (sem encargos, taxas e impostos) - CT = Qde x CUD
A33: FatorK - Taxa de Ressarcimento de Despesas e Encargos
A34: PU - Preço Unitário (incluído encargos, taxas e impostos) - PU = CUD x FatorK
A35: PT - Preço Total (incluído encargos, taxas e impostos) - PT = Qde x PU

Sheet CT_OS
A1: ORDEM DE SERVIÇO | H1: CODIGO:
H2: O.S.
A3: NOME DA EMPRESA: | H3: N° O.S.:
A5: PROJETO: | D5: CONTRATANTE: | H5: CONTRATO:
A6: CONTRATAÇÃO DE SERVIÇOS DE APOIO TÉCNICO-ADMINISTRATIVO CONTINUADO VISANDO À IMPLANTAÇÃO E ACOMPANHAMENTO DE AÇÕES DE DESENVOLVIMENTO REGIONAL NA ÁREA DE ATUAÇÃO DA 10ª SUPERINTENDÊNCIA REGIONAL DA CODEVASF NO ESTADO DO TOCANTINS. | D6: CODEVASF (10ª/SR)
A7: Cod. | B7: Produtos/Atividades | D7: Tipo | F7: Prazo | H7: Obs
A17: Cod. | B17: Categoria / Insumo | C17: Uni | D17: Qde | E17: CUD | F17: PU | G17: FatorK | H17: CT | I17: PT
A18: MO | B18: Mão de Obra com Vínculo | H18: =SUM(H19:H22) -> 0 | I18: =SUM(I19:I22) -> 0
A19: P1 | B19: Profissional Pleno (Coordenador) | C19: mês
A20: P3 | B20: Profissional Junior (Geral) | C20: mês
A21: P3 | B21: Profissional Junior (De campo) | C21: mês
A22: T1 | B22: Tecnico Pleno | C22: mês
A23: MO | B23: Mão de Obra sem Vínculo | H23: =SUM(H21:H25) -> 0 | I23: =SUM(I21:I25) -> 0
A24: P2 | B24: Profissional Medio | C24: mês
A25: T1 | B25: Tecnico Pleno | C25: mês
A26: DPV | B26: Diárias, Passagens E Veículos | H26: =SUM(H27:H29) -> 0 | I26: =SUM(I27:I29) -> 0
A27: DPV | B27: Diárias | C27: dia
A28: V1 | B28: Saveiro Robust 1.6 Total Flex 8V ou similar | C28: mês
A29: V2 | B29: Hilux CS 4x4 2.8 TDI Diesel Mec. ou similar | C29: mês
A30: EM | B30: Equipamentos e Materiais | H30: =SUM(H31:H32) -> 0 | I30: =SUM(I31:I32) -> 0
A31: EM1 | B31: Notebook | C31: un
A32: EM2 | B32: Navegador GPS | C32: un
A33: TOTAL DOS CUSTOS DIRETOS | F33: =H18+H26+H23+H30 -> 0
A34: TOTAL DOS ENCARGOS E DESPESAS DIVERSAS | F34: =F35-F33 -> 0
A35: TOTAL DA PROPOSTA | F35: =I18+I26+I23+I30 -> 0
A36: NOME DO INFORMANTE: | H36: QUALIFICAÇÃO
A38: ASSINATURA: | H38: DATA:
A40: OBSERVAÇÃO:
A41: Un - unidade de medição do insumo;
A42: Qde - Quantidade do Insumo (não pode ocorrer alteração pela Licitante)
A43: CUD - Custo Unitário Direto do Insumo (sem encargos, taxas e impostos, valor não pode ser maior que o Orçado pela Codevasf)
A44: CT - Custo Total (sem encargos, taxas e impostos) - CT = Qde x CUD
A45: FatorK - Taxa de Ressarcimento de Despesas e Encargos (detalhar composição nas Planilhas "FCON2.1", "FCON2.2", "FCON3")
A46: PU - Preço Unitário (incluído encargos, taxas e impostos) - PU = CUD x FatorK
A47: PT - Preço Total (incluído encargos, taxas e impostos) - PT = Qde x PU

Sheet CT_RAM
A1: RELATÓRIO DE ACOMPANHAMENTO E MEDIÇÃO | H1: CODIGO:
H2: RAM
A3: NOME DA EMPRESA: | H3: N° RAM:
A5: PROJETO: | D5: CONTRATANTE: | H5: CONTRATO:
A6: CONTRATAÇÃO DE SERVIÇOS DE APOIO TÉCNICO-ADMINISTRATIVO CONTINUADO VISANDO À IMPLANTAÇÃO E ACOMPANHAMENTO DE AÇÕES DE DESENVOLVIMENTO REGIONAL NA ÁREA DE ATUAÇÃO DA 10ª SUPERINTENDÊNCIA REGIONAL DA CODEVASF NO ESTADO DO TOCANTINS. | D6: CODEVASF (10ª/SR)
A7: Cod. | B7: Produtos Demandados | D7: Tipo | F7: Prazo | H7: Obs
A16: Cod. | B16: Produtos Executados | D16: Tipo | F16: Prazo | H16: Obs
A25: Cod. | B25: Infrações Constatadas | D25: Tipo | F25: Sanção | H25: Valor
A30: N° de Atividades Demandadas
A31: N° de Atividades Entregues
A32: Grau de Execução das Atividades Programadas (GEAP)
A33: Fator de Ajuste no Pagamento
A34: Multas e descontos
A35: TOTAL DA ORDEM DE SERVIÇO
A36: TOTAL DA ORDEM DE PAGAMENTO
A37: FISCAL: | H37: SETOR:
A39: ASSINATURA: | H39: DATA:
A41: OBSERVAÇÕES:

Sheet CT_CV
A1: FICHA CURRICULAR DA EQUIPE TÉCNICA | G1: CODIGO:
G2: CV
A3: NOME DA EMPRESA:
A5: PROJETO: | D5: CONTRATANTE: | G5: EDITAL:
A6: CONTRATAÇÃO DE SERVIÇOS DE APOIO TÉCNICO-ADMINISTRATIVO CONTINUADO VISANDO À IMPLANTAÇÃO E ACOMPANHAMENTO DE AÇÕES DE DESENVOLVIMENTO REGIONAL NA ÁREA DE ATUAÇÃO DA 10ª SUPERINTENDÊNCIA REGIONAL DA CODEVASF NO ESTADO DO TOCANTINS. | D6: CODEVASF (10ª/SR)
A7: NOME DO PROFISSIONAL:
A9: ATUAÇÃO NO PROJETO: | C9: FORMAÇÃO PRINCIPAL: | E9: NASCIMENTO: | G9: NACIONALIDADE:
A11: FORMAÇÃO
A12: ESCOLARIDADE | C12: ENTIDADE | E12: CIDADE | G12: DURAÇÃO | H12: ANO CONCL.
A13: Técnico (título) | C13: Escola | E13: Cidade | G13: X anos | H13: AAAA
A14: Superior (título) | C14: Universidade | E14: Cidade | G14: X anos | H14: AAAA
A15: Especialização (título) | C15: Universidade | E15: Cidade | G15: X anos | H15: AAAA
A16: Mestrado (título) | C16: Universidade | E16: Cidade | G16: X anos | H16: AAAA
A17: Doutorado (título) | C17: Universidade | E17: Cidade | G17: X anos | H17: AAAA
A18: PERIODO | B18: CAPACIDADE TÉCNICA - EXPERIÊNCIA PROFISSIONAL
A19: (MM/AA a MM/AA) | B19: (Empresa, cargo ou função, cidade)
A25: CAT | B25: CAPACIDADE TÉCNICA - SERVIÇO OU OBRA
A26: (nº da ART ou CAT) | B26: (Objeto resumido, quantificação, contratante, cidade)
A32: ANO | B32: CAPACIDADE TECNOLÓGICA - CERTIFICADO
A33: (AAAA) | B33: (Nome do curso, empresa de treinamento, carga horaria em hs, cidade)
A38: CONCORDO EM PARTICIPAR DESTE OBJETO (ASSINATURA): | E38: Nº DO REGISTRO PROFISSIONAL:
A40: NOME DO INFORMANTE: | G40: QUALIFICAÇÃO
A42: ASSINATURA: | G42: DATA:
A44: OBSERVAÇÃO:
A45: 1 – PREENCHER UMA FICHA PARA CADA PROFISSIONAL DA EQUIPE CHAVE (ESPECIALISTAS) E COMPLEMENTAR (ANALISTAS)
A46: 2 – JUNTAR COMPROVANTES DE ESCOLARIDADE
A47: 3 – JUNTAR OS COMPROVANTES DA EXP. PROFISSIONAL, CERTIFICADOS PELA UNIDADE PROFISSIONAL COMPETENTE
A48: 4 – JUNTAR OS COMPROVANTES DE CAPACIDADE TECNICA, RELATIVO AOS CAT DE SERVIÇOS SIMILARES OU CORRELATOS, CONFORME, ITEM 10.
A49: 5 – JUNTAR OS COMPROVANTES DE CAPACIDADE TECNOLOGICA, CONFORME ITEM 10.
A50: 6 – ITENS EM VERMELHO SÃO APENAS INSTRUÇÃO DE PREENCHIMENTO E DEVEM SER APAGADOS.
